Cogmind - Beta 14 @@@ ROGUE MODE // 2024.12.05 @ 09:58:14 Player: Shimmyarah Result: Destroyed by H-61 Shepherd with Heavy Assault Cannon Performance ------------- Evolutions (2) 1000 Regions Visited (5) 1000 Robots Destroyed (25) 125 Value Destroyed (364) 364 Prototype IDs (4) 80 Alien Tech Used (0) 0 Bonus (118) 118 TOTAL SCORE: 2687 Bonus ------- Follower Combat Kills 118 Cogmind --------- Core Integrity 0/550 Matter 186/300 Energy 98/100 System Corruption 5% Temperature Cool (0) Movement Core (50) Location -8/Materials Parts ------- > --- POWER (1) -------- (None) > --- PROPULSION (4) --- (None) > --- UTILITY (4) ------ Advanced Visual Processing Unit Core Analyzer > --- WEAPON (2) ------- (None) > --- INVENTORY (5) ---- Heat Sink ECM Suite Reaction Control System System Shield Splice Drone Bay (6/6) Peak State ------------ > --- POWER ------------ Light Nuclear Core > --- PROPULSION ------- Flight Unit Flight Unit Improved Flight Unit Cesium-ion Thruster > --- UTILITY ---------- Cooling System Visual Processing Unit Core Analyzer ECM Suite > --- WEAPON ----------- Light Assault Rifle > --- INVENTORY -------- Light Ion Engine Flight Unit Reaction Control System Splice Drone Bay Mining Claw [Rating: 22] Favorites ----------- Power Light Ion Engine Engine Light Ion Engine Power Core Light Nuclear Core Propulsion Flight Unit Treads Light Treads Leg Aluminum Leg Flight Unit Flight Unit Utility Visual Processing Unit Device Seismic Detector Storage Small Storage Unit Processor Visual Processing Unit Protection Light Armor Plating Weapon Small Laser Energy Gun Small Laser Ballistic Gun Light Assault Rifle Launcher Mini Grenade Launcher Special Weapon Mining Laser Slashing Weapon Mining Claw Build | -11 -10 -10 -9 -9 -8 ------- Run | Yrd Mat Min Mat Min Mat Slots Evolved 4 | . . . 2 . 2 Power . | . . . . . . Propulsion 2 | . . . 1 . 1 Utility 2 | . . . 1 . 1 Weapon . | . . . . . . Parts Attached 41 | 1 13 1 7 3 16 Power 5 | . 1 . . . 4 Engine 4 | . 1 . . . 3 Core 1 | . . . . . 1 Reactor . | . . . . . . Propulsion 14 | . 6 . 3 . 5 Treads 2 | . 2 . . . . Leg 2 | . 2 . . . . Wheel . | . . . . . . Hover . | . . . . . . Flight 10 | . 2 . 3 . 5 Utility 11 | 1 1 1 3 2 3 Device 7 | 1 . . 3 2 1 Storage . | . . . . . . Processor 3 | . 1 . . . 2 Hackware . | . . . . . . Protection 1 | . . 1 . . . Artifact . | . . . . . . Weapon 11 | . 5 . 1 1 4 Energy Gun 4 | . 3 . . 1 . Energy Cannon . | . . . . . . Ballistic Gun 3 | . 2 . . . 1 Ballistic Cannon . | . . . . . . Launcher 1 | . . . . . 1 Special Weapon 1 | . . . 1 . . Impact Weapon . | . . . . . . Slashing Weapon 2 | . . . . . 2 Piercing Weapon . | . . . . . . Special Melee Weapon . | . . . . . . Unidentified Prototypes 2 | . . . . 1 1 Parts Lost 14 | . 2 . . . 12 Power 2 | . . . . . 2 Propulsion 6 | . . . . . 6 Utility 1 | . . . . . 1 Weapon 5 | . 2 . . . 3 Highest Loss Streak 10 | . 2 . . . 10 To Critical Strikes . | . . . . . . Average Slot Usage (%) 90 | . 98 100 88 100 64 Engine 11 | . 14 14 11 11 4 Treads 3 | . 10 . . . . Leg 2 | . 7 . . . . Flight 22 | . 9 28 29 33 24 Device 8 | . 14 1 3 14 13 Storage 2 | . 9 . . . . Processor 10 | . 4 14 11 11 13 Protection 5 | . . 12 11 7 . Energy Gun 12 | . 20 14 9 4 1 Ballistic Gun 8 | . 5 14 11 11 3 Peak Build Rating 22 | 8 8 8 12 17 22 Average Rating 9 | 6 7 8 9 11 13 On Entrance 8 | 6 8 8 8 11 12 Naked Turns . | . . . . . . Heaviest Build 15 | 14 15 8 10 15 12 Greatest Support 40 | 20 40 8 12 12 18 Greatest Overweight (x) 1 | . 1 . . 1 1 Average Overweight (x) . | . . . . . . Largest Inventory Capacity 8 | 8 8 5 5 5 5 Average Capacity 5 | 8 7 5 5 5 5 Most Carried 8 | 8 8 5 5 5 5 Average Carried 5 | 6 6 5 4 5 4 Final Capacity 8 | 8 5 5 5 5 5 Final Carried 8 | 8 5 5 5 5 5 Class Distribution -------------------- 57% | Scavenger-Mutant 31% | Mutant 6% | Scavenger-Sprinter 3% | Sprinter Dominant Class ---------------- Mutant | -10/Materials Scavenger-Mutant | -10/Mines Scavenger-Mutant | -9/Materials Scavenger-Mutant | -9/Mines Scavenger-Sprinter | -8/Materials Resources | -11 -10 -10 -9 -9 -8 ----------- Run | Yrd Mat Min Mat Min Mat Matter Collected 464 | 210 134 10 58 42 10 Remotely . | . . . . . . Salvage Created 692 | 340 309 . 17 . 26 Parts 52 | 24 23 . 2 . 3 Haulers Intercepted . | . . . . . . Recyclers Shooed . | . . . . . . Parts Field Recycled . | . . . . . . Retrieved Matter . | . . . . . . Parts Self-Destructed . | . . . . . . Prevented . | . . . . . . Kills | -11 -10 -10 -9 -9 -8 ------- Run | Yrd Mat Min Mat Min Mat Combat Hostiles Destroyed 10 | . 7 . 1 . 2 Guns 8 | . 7 . 1 . . AOE 2 | . . . . . 2 Classes Destroyed 7 | 3 3 . . . 1 Worker 2 | 2 . . . . . Tunneler 9 | 9 . . . . . Recycler 1 | 1 . . . . . Watcher 3 | . 2 . . . 1 Swarmer 4 | . 3 . 1 . . Cutter 2 | . . . . . 2 Grunt 4 | . 4 . . . . Best Kill Streak 4 | 4 4 . 1 . 3 Combat Bots Only 4 | . 4 . 1 . 2 Max Kills in Single Turn 2 | 1 1 . 1 . 2 Gunslinging . | . . . . . . Exploded 1 | . . . . . 1 Melee . | . . . . . . Uniques/NPCs Destroyed . | . . . . . . Combat | -11 -10 -10 -9 -9 -8 -------- Run | Yrd Mat Min Mat Min Mat Hostile Shots Fired 204 | . 49 . 21 . 134 Missed 90 | . 11 . 13 . 66 Damage Taken 1629 | . 409 . 111 . 1109 Core 672 | . 82 . . . 590 Absorbed by Shields . | . . . . . . Core Remaining (%) 89 | 100 . 67 . 100 . Volleys Fired 116 | 54 38 . 17 . 7 Largest 2 | 2 2 . 2 . 1 Hottest 100 | 80 80 . 100 . 40 Shots Fired 150 | 55 57 . 31 . 7 Gun 145 | 55 57 . 28 . 5 Cannon . | . . . . . . Launcher 2 | . . . . . 2 Special 3 | . . . 3 . . Kinetic 18 | . 4 . 14 . . Thermal 97 | 54 21 . 17 . 5 Explosive 2 | . . . . . 2 Electromagnetic 33 | 1 32 . . . . Robot Hit Streak 7 | 7 5 . 3 . 6 Robot Miss Streak 6 | 3 3 . 6 . 1 Penetration Max . | . . . . . . Secondary Targets . | . . . . . . Shots Hit Robots 89 | 39 32 . 12 . 6 Core Hits 34 | 12 15 . 3 . 4 Critical Kills . | . . . . . . Critical Parts Destroyed . | . . . . . . Critical Strikes . | . . . . . . Melee Attacks 4 | . . . . . 4 Impact . | . . . . . . Slashing 4 | . . . . . 4 Piercing . | . . . . . . Sneak Attacks . | . . . . . . Combat Hostiles . | . . . . . . Follow-up Attacks . | . . . . . . Damage Inflicted 1142 | 429 365 . 128 . 220 Guns 964 | 429 365 . 128 . 42 Cannons . | . . . . . . Explosions 158 | . . . . . 158 Melee . | . . . . . . Ramming 20 | . . . . . 20 Kinetic 73 | . 12 . 61 . . Thermal 644 | 414 121 . 67 . 42 Explosive 158 | . . . . . 158 Electromagnetic 247 | 15 232 . . . . Impact . | . . . . . . Slashing . | . . . . . . Piercing . | . . . . . . Highest Corruption 5 | . . . . . 5 Average Corruption 2 | . . . . . 2 Corruption Purged . | . . . . . . Corruption Blocked . | . . . . . . Effects 3 | . . . . . 3 Message Errors 2 | . . . . . 2 Data Loss (minor) 1 | . . . . . 1 Overload Shots . | . . . . . . Overflow Damage 45 | . . . . . 45 Projectiles . | . . . . . . Explosions 45 | . . . . . 45 Melee . | . . . . . . Knockbacks . | . . . . . . Impact . | . . . . . . Kinetic . | . . . . . . Secondary . | . . . . . . Self-Inflicted Damage 58 | . . . . . 58 Shots 1 | . . . . . 1 Rammed 4 | . . . . . 4 Targets Rammed 4 | . . . . . 4 Kicked . | . . . . . . Crushed . | . . . . . . Highest Temperature 309 | 20 309 . 62 . 5 Average Temperature 73 | 16 98 . 23 . 3 Received Heat Transfer 531 | . 135 . 54 . 342 Siege Activations . | . . . . . . Robots Corrupted . | . . . . . . Combat Hostiles . | . . . . . . Parts Fried 1 | . 1 . . . . Impact Corruptions . | . . . . . . Robots Melted . | . . . . . . Combat Hostiles . | . . . . . . Parts Melted . | . . . . . . Heat Transferred 1500 | 975 275 . 150 . 100 Parts Sabotaged . | . . . . . . Parts Stolen . | . . . . . . Parts Stripped . | . . . . . . Power Chain Reactions . | . . . . . . Alert | -11 -10 -10 -9 -9 -8 ------- Run | Yrd Mat Min Mat Min Mat Peak Influence 426 | 60 299 54 402 139 426 Initial 139 | . 39 54 20 139 53 Average 140 | 26 151 54 215 139 245 Maximum Alert Level 2 | . 1 . 2 . 2 Low Security (%) 70 | 100 59 100 44 100 42 Level 1 26 | . 40 . 54 . 41 Level 2 2 | . . . . . 16 Level 3 . | . . . . . . Level 4 . | . . . . . . Level 5 . | . . . . . . High Security . | . . . . . . Max Security . | . . . . . . Squads Dispatched 6 | . . . 1 . 5 Investigation 3 | . . . 1 . 2 Extermination . | . . . . . . Reinforcement 3 | . . . . . 3 Assault . | . . . . . . Garrison . | . . . . . . Intercept . | . . . . . . Searches Triggered . | . . . . . . Construction Impeded . | . . . . . . Haulers Reinforced . | . . . . . . Active Scanning Responses . | . . . . . . Cargo Convoy Interrupts . | . . . . . . Stealth | -11 -10 -10 -9 -9 -8 --------- Run | Yrd Mat Min Mat Min Mat Distress Signals 3 | . 1 . 1 . 1 Communications Jammed . | . . . . . . Distress Signals . | . . . . . . Times Spotted 71 | . 13 . 17 . 41 Peak Tracking Total 18 | . 4 . 6 . 18 Tactical Retreats 14 | . 4 . 3 . 7 Traps | -11 -10 -10 -9 -9 -8 ------- Run | Yrd Mat Min Mat Min Mat Traps Triggered 1 | . . . . . 1 Indirectly . | . . . . . . Trap Hack Attempts . | . . . . . . Triggered . | . . . . . . Disarmed . | . . . . . . Reprogrammed . | . . . . . . Reused . | . . . . . . Traps Extracted . | . . . . . . Installed . | . . . . . . Triggered . | . . . . . . Machines | -11 -10 -10 -9 -9 -8 ---------- Run | Yrd Mat Min Mat Min Mat Machines Disabled . | . . . . . . Max in Single Turn . | . . . . . . Machines Repaired . | . . . . . . Machines Dismantled . | . . . . . . Machines Sabotaged . | . . . . . . Overloaded Fab Kills . | . . . . . . Hacking | -11 -10 -10 -9 -9 -8 --------- Run | Yrd Mat Min Mat Min Mat Machines Accessed 16 | . 3 . 6 1 6 Terminals 13 | . 2 . 5 . 6 Fabricators . | . . . . . . Repair Stations . | . . . . . . Recycling Units 2 | . 1 . 1 . . Scanalyzers . | . . . . . . Garrison Access . | . . . . . . Total Hacks 57 | . 15 . 22 1 19 Successful 31 | . 11 . 14 1 5 Failed 26 | . 4 . 8 . 14 Catastrophic 3 | . . . 2 . 1 Database Lockouts . | . . . . . . Manual 41 | . 7 . 17 . 17 Terminals 48 | . 10 . 19 . 19 Fabricators . | . . . . . . Repair Stations . | . . . . . . Recycling Units 8 | . 5 . 3 . . Scanalyzers . | . . . . . . Garrison Access . | . . . . . . Terminal Hacks 8 | . 5 . 2 1 . Prototype ID Bank 1 | . 1 . . . . Open Door 1 | . . . . 1 . Emergency Access Points 1 | . 1 . . . . Maintenance Status 1 | . 1 . . . . Surveillance Status 1 | . 1 . . . . Hauler Manifests 1 | . . . 1 . . Registered Prototypes 1 | . . . 1 . . Zone Layout 1 | . 1 . . . . Fabricator Hacks . | . . . . . . Repair Station Hacks . | . . . . . . Recycling Unit Hacks 2 | . 1 . 1 . . Retrieve Components 2 | . 1 . 1 . . Scanalyzer . | . . . . . . Garrison Access Hacks . | . . . . . . Unauthorized Hacks 21 | . 5 . 11 . 5 Terminals 17 | . 2 . 10 . 5 Track 1 | . . . 1 . . Botnet 5 | . . . 3 . 2 Operators 1 | . . . 1 . . Skim 10 | . 2 . 5 . 3 Fabricators . | . . . . . . Repair Stations . | . . . . . . Recycling Units 4 | . 3 . 1 . . Monitor 1 | . 1 . . . . Reject 2 | . 1 . 1 . . Recyclers 1 | . 1 . . . . Scanalyzers . | . . . . . . Garrison Access . | . . . . . . Data Cores Recovered . | . . . . . . Used . | . . . . . . Hacking Detections 14 | . 2 . 6 . 6 Full Trace Events 2 | . . . . . 2 Feedback Events 1 | . . . . . 1 Corruption 1 | . . . . . 1 Feedback Blocked . | . . . . . . Robot Schematics Acquired . | . . . . . . Robots Built . | . . . . . . Authchips . | . . . . . . Time . | . . . . . . Total Robot Build Rating . | . . . . . . Part Schematics Acquired . | . . . . . . Parts Built . | . . . . . . Authchips . | . . . . . . Time . | . . . . . . Total Part Build Rating . | . . . . . . Parts Repaired . | . . . . . . Time . | . . . . . . Parts Recycled . | . . . . . . Recycled Matter . | . . . . . . Retrieved Matter . | . . . . . . Retrieved Components 3 | . 2 . 1 . . Parts Scanalyzed . | . . . . . . Part Schematics Acquired . | . . . . . . Parts Damaged . | . . . . . . Bothacking | -11 -10 -10 -9 -9 -8 ------------ Run | Yrd Mat Min Mat Min Mat Used RIF Installer . | . . . . . . Robots Hacked . | . . . . . . Non-combat . | . . . . . . Combat . | . . . . . . Robot Hacks Applied . | . . . . . . Relay Couplers Released . | . . . . . . Fabnet Peak Effective % . | . . . . . . Robots Rewired . | . . . . . . Allies Hacked . | . . . . . . Hacks Repelled . | . . . . . . Allies | -11 -10 -10 -9 -9 -8 -------- Run | Yrd Mat Min Mat Min Mat Total Allies 5 | . . 5 . . . Largest Group 5 | . . 5 5 . . Highest-Rated Group 85 | . . 85 85 . . Highest-Rated Ally 31 | . . 31 31 . . Total Orders 1 | . . . . 1 . RETURN 1 | . . . . 1 . Ally Attacks 44 | . . . 44 . . Total Damage 438 | . . . 438 . . Kills 10 | . . . 10 . . Allies Corrupted . | . . . . . . Allies Melted . | . . . . . . Intel | -11 -10 -10 -9 -9 -8 ------- Run | Yrd Mat Min Mat Min Mat Robot Analysis Total . | . . . . . . Derelict Logs Recovered 3 | . . 2 . 1 . Drone Launches 1 | . . . . 1 . Drone Recoveries 1 | . . . . 1 . Exploration | -11 -10 -10 -9 -9 -8 ------------- Run | Yrd Mat Min Mat Min Mat Turns Passed 1797 | 234 457 381 313 121 291 Spaces Moved 2298 | 66 416 379 500 329 608 Core 134 | . . . . . 134 Treads 46 | . 46 . . . . Legs 120 | 66 54 . . . . Wheels . | . . . . . . Hover . | . . . . . . Flight 1998 | . 316 379 500 329 474 Fastest Speed 29 | 120 37 37 34 34 29 Average Speed 42 | 120 62 37 34 34 35 Slowest Speed 160 | 120 160 37 37 114 115 Overloaded Moves . | . . . . . . Propulsion Burnouts . | . . . . . . Robots Hopped 24 | . . 6 6 4 8 Cave-ins Triggered . | . . . . . . Exploration Rate (%) 51 | 5 51 68 60 57 69 Regions Visited 5 Branch Regions 2 Pre-discovered Areas 2 | . . 1 1 . . Known Exits Taken . | . . . . . . Unknown Exits Taken 5 | 1 1 1 1 1 . Scrap Searched 2 | . . 1 . 1 . Spaces Dug 6 | . . . 2 . 4 Terrain Destroyed 16 | . . . 2 . 14 Melee 4 | . . . . . 4 Projectile 2 | . . . 2 . . AOE 10 | . . . . . 10 Terrain Rammed . | . . . . . . Walls Destroyed . | . . . . . . Machines Disabled . | . . . . . . Actions | -11 -10 -10 -9 -9 -8 --------- Run | Yrd Mat Min Mat Min Mat Total 2925 | 165 558 613 601 330 658 Wait 444 | 43 69 239 75 . 18 Move 2247 | 65 415 366 487 320 594 Hop 22 | . . 6 6 4 6 Pick Up 22 | 2 10 . 3 1 6 Fast Attach 9 | 1 2 1 1 1 3 Attach 12 | . 2 . 2 . 8 Detach 3 | . . . 1 . 2 Swap 20 | . 9 . 4 2 5 Drop 22 | . 13 1 5 2 1 Fire 116 | 54 38 . 17 . 7 Melee 4 | . . . . . 4 Ram 4 | . . . . . 4 Kick . | . . . . . . Crush . | . . . . . . Escape Stasis . | . . . . . . Rewire . | . . . . . . Trap . | . . . . . . Miscellaneous . | . . . . . . Route ------- -11/Scrapyard -10/Materials (discovered 2 exits: *Mat / [*Min]) -10/Mines (discovered 3 exits: *Mat x2 / Sub) -9/Materials (discovered 3 exits: *Mat x2 / *Min) -9/Mines (discovered 3 exits: *Mat x2 / [*Exi]) -8/Materials (discovered 2 exits: [*Fac x2]) History --------- Turn | Location | Event 11 | -11/Scrapyard | Discovered new exit (range 3) 235 | -11/Scrapyard | Entered Materials 312 | -10/Materials | Build established: Mutant 591 | -10/Materials | Discovered new exit (range 3) 611 | -10/Materials | Discovered new exit (range 17) 692 | -10/Materials | Entered Mines 707 | -10/Mines | Met a Derelict bent on vengeance 731 | -10/Mines | Discovered new exit (range 5) 734 | -10/Mines | Joined a pair of Derelicts in attacking an 0b10 outpost 756 | -10/Mines | Discovered new exit (range 4) 783 | -10/Mines | Identified exit to Subcaves 789 | -10/Mines | Learned location of Storage (-7) 808 | -10/Mines | Build established: Scavenger-Mutant 812 | -10/Mines | Assisted by bots powering up and referring to "LRC-V3" 1073 | -10/Mines | Entered Materials 1073 | -9/Materials | Accompanied by 5 allies 1073 | -9/Materials | Evolved 2 slots: Propulsion x1, Utility x1 1078 | -9/Materials | Led the pair of lost Derelicts to an unsafe place 1249 | -9/Materials | Discovered new exit (range 9) 1298 | -9/Materials | Discovered new exit (range 8) 1322 | -9/Materials | Discovered new exit (range 16) 1381 | -9/Materials | Learned location of Mines (-8) 1386 | -9/Materials | Entered Mines 1387 | -9/Mines | Learned Materials stockpile data 1406 | -9/Mines | Discovered new exit (range 11) 1435 | -9/Mines | Deemed a non-threat by the Exiles lab entrance 1435 | -9/Mines | Discovered new exit (range 5) 1447 | -9/Mines | Discovered new exit (range 11) 1462 | -9/Mines | Found the Drone Emporium 1464 | -9/Mines | Found Prototype Device 1464 | -9/Mines | Identified Splice Drone Bay 1507 | -9/Mines | Entered Materials 1507 | -8/Materials | Evolved 2 slots: Propulsion x1, Utility x1 1647 | -8/Materials | Discovered new exit (range 14) 1670 | -8/Materials | Discovered new exit (range 18) 1732 | -8/Materials | Core integrity fell below 50% 1764 | -8/Materials | Lost 10 parts (2p5n1u2w) 1780 | -8/Materials | Core integrity fell below 20% 1798 | -8/Materials | Destroyed by H-61 Shepherd with Heavy Assault Cannon Last Messages --------------- 01719_ Flight Unit destroyed. 01719_ Critical hit (Burn: +37). 01719_ Mining Claw destroyed. 01722_ Flight Unit destroyed. 01729_ BYCQMBOSAK94J6NX4GE1JPOPUHKDR<4XY|HMU::| 01731_ K-01 Serf collects debris. 01733_ Lgt. Ion Engine destroyed. 01733_ Critical hit (Burn: +37). 01733_ Cesium-ion Thruster destroyed. 01734_ Visual Processing Unit severed. 01740_ Critical hit (Burn: +37). 01742_ Acquired Adv. Visual Processing Unit. 01751_ Slammed into R-06 Scavenger. 01757_ ALERT: Hostiles spotted, dispatching reinforcements to Terminal M009. 01791_ Slammed into R-06 Scavenger. 01794_ Triggered Shock Trap. 01794_ The floor emits a surge of raw power. 01794_ System corrupted (+2). 01795_ Slammed into R-06 Scavenger. Map ----- +----------------------------------------------------+ | ## # #?# # #?????????# #?????? | | ############ #?# """ # #?????????# #?????? | | ### """ # #?????????# #?????? | | ^ + """ + #?????????# #?????? | | ####### #### ! # #?????????# ####### | | ??????# #??# """ # #?????????# ## | | ??????#==!!//#??# """ # #????????## ## | | ??????#==!!//#??# """ # ###????????#! # """ | | ??????########??# # #??????????# # """ | | ????????????????########## #??????????+ + """ | | ?????????????????????????# #??????????# # """ | | ?????????????????????????# #??????????# # | | ??###########????????????# #??????????### # | | ??# """T""" #????????????# #????????????# ###### | | ??# #????????????# #????????????# #????? | | ??# """ """ #????????????# #????????????# #????? | | ??# """ """ #????????????# #????????????# ###### | | ### """ """ #????????????# #??????? | | !## """ """ ###?????????## #???????????? ######### | | !# """ """ " #?????????#; #???????????? ????????? | | # ###???????###; ##?????????? ????????? | | ###+################# #?????????? ????????? | | r #?????????? ????????? | | H #?????????? ?????????? | | % %! #?????????? ?????????? | | ####"#######+## ##+### @ #????????????????????? | | #?## # #? ?## ##??????=?????????????? | | #??# #? #?# #?????????????????????? | | #??# """ "" #? #?# #?????????????????????? | | #??# """ # #?# #########?????????????? | | #??# """ # #?# ## #????????????## | | #??# [ # #?# ## #???????????? | | #??# # #?# ## #???????????? | | #??# #????# ## #???????????? | | ##??##### % ##???# ## % ?????????????# | | ???# # !# #???# ## ???????????????# | | ???#= """ ## ####### ###+####?????????????# | | ???# """ ## ############### | | ???# """ ## % | | ???# ### ############## " | | ???#"" """ ??#!!! ###+#########????????????# T | | ?????T """ ??#!!! # ???????????????????# | | ?????? """ ??#!!/ = # ?????????????????# | | ???????? ??# # ???????????????## | | ????????+###??# ! # ??????????????# | | ????????????? # """ """ #?????????????# | | ???????????? ##### """ """ #?????????????# | | ?????????? #???# """ """ #?????????????# | | ????????? #???#############?????????????# | | ???????? ?????????????????????????????# | +----------------------------------------------------+ Best States ------------- Heat Dissipation 53 Energy Generation 14 Energy Capacity 250 Matter Stores 300 Matter Capacity 300 Sight Range 20 Terrain Scan Density 10 ECM Strength 1 Armor Coverage 150 Evasion (%) 64 Core Analysis 6 Recoil Reduction 2 Item Schematics ----------------- None Robot Schematics ------------------ None Fabricated ------------ Nothing Alien Tech Used ----------------- None Achievements -------------- None Challenges ------------ None Game ------ Seed ThermoelectricBattleCharger Manual? 0 Play Time 00:31:57 Cumulative 105.6 hours Start 2024.12.05 @ 09:30:24 End 2024.12.05 @ 09:58:14 Sessions 1 Manual Loads 0 Difficulty Rogue Special Mode None Game No. 149 Rogue 149 Adventurer 0 Explorer 0 Win Type - Total 0 Types 0/0/0/0/0/0/0/0/0 Lore% 59 Gallery% 47 Achievement% 34 Wizard Run 0 Options --------- Layout 1 ASCII 0 Keyboard 0 Movement Mouse Keybinds 0 Fullscreen 1 Font 24/Smallcaps Map View 50x40 Zoom Use 0% Tactical HUD 1 Map Filters NONE Filters NONE Steam 1 RUN: 5487b002-82bb-4510-aa17-843b409de8a4